[Event "41st OBSenEM 2025"]
[Site "Berlin"]
[Date "2025.02.07"]
[Round "4.2"]
[White "Matitschka, Heinz"]
[Black "Postler, Reinhard"]
[Result "0-1"]
[Annotator "NA RC"]
[ECO "D46"]
[WhiteElo "1943"]
[BlackElo "2189"]
[PlyCount "74"]
[EventDate "2025.02.04"]
[EventType "swiss"]
[EventCountry "GER"]
[SourceTitle "playchess.com"]
[Source "ChessBase"]
[SourceQuality "1"]
[TimeControl "40/5400+30:1800+30"]

1. d4 {[%emt 0:00:08]} d5 {[%emt 0:00:11]} 2. c4 {[%emt 0:00:10]} c6 {[%emt 0:00:09]} 3. Nf3 {[%emt 0:00:25]} Nf6 {[%emt 0:00:09]} 4. e3 {[%emt 0:00:30]} e6 {[%emt 0:00:16]} 5. Nbd2 {[%emt 0:00:42]} Nbd7 {[%emt 0:00:54]} 6. Bd3 {[%emt 0:00:29]} Bd6 {[%emt 0:00:08]} 7. e4 {[%emt 0:01:03]} dxe4 {[%emt 0:02:20]} 8. Nxe4 {[%emt 0:00:17]} Nxe4 {[%emt 0:02:12]} 9. Bxe4 {[%emt 0:00:10]} Nf6 {[%emt 0:03:01]} 10. Bc2 {[%emt 0:00:24]} c5 {[%emt 0:07:09]} 11. O-O {[%emt 0:06:25]} cxd4 {[%emt 0:09:08]} 12. Bg5 {[%emt 0:07:26]} h6 {[%emt 0:17:06]} 13. Bh4 {[%emt 0:08:13]} Bd7 {[%emt 0:06:43]} 14. Re1 {[%emt 0:07:23]} Qb6 {[%emt 0:07:56]} 15. b4 {[%emt 0:17:35]} Qxb4 {[%emt 0:20:52]} 16. Nxd4 {[%emt 0:08:06]} O-O-O {[%emt 0:07:47]} 17. Rb1 {[%emt 0:06:45]} Qa5 {[%emt 0:02:11]} 18. Qf3 {[%emt 0:02:57]} Qc7 {[%emt 0:00:02]} 19. Bxf6 {[%emt 0:12:04]} gxf6 {[%emt 0:00:03]} 20. Be4 {[%emt 0:00:09]} b6 {[%emt 0:02:50]} 21. c5 {[%emt 0:05:09]} Bxc5 {[%emt 0:00:46]} 22. Rec1 {[%emt 0:00:42]} Ba4 {[%emt 0:02:11]} 23. Nc6 {[%emt 0:10:53]} f5 {[%emt 0:03:04]} 24. Rxc5 {[%emt 0:00:56]} bxc5 {[%emt 0:00:29]} 25. Nxa7+ {[%emt 0:02:33]} Qxa7 {[%emt 0:00:16]} 26. Bb7+ {[%emt 0:00:04]} Kd7 {[%emt 0:01:07]} 27. Qa3 {[%emt 0:01:36]} Ke7 {[%emt 0:01:04]} 28. Bc6 {[%emt 0:00:32]} Rb8 {[%emt 0:00:07]} 29. Rxb8 {[%emt 0:00:35]} Rxb8 {[%emt 0:00:04]} 30. h3 {[%emt 0:00:12]} Rb4 {[%emt 0:00:05]} 31. Bf3 {[%emt 0:00:48]} Rb1+ {[%emt 0:00:20]} 32. Kh2 {[%emt 0:01:09]} Qc7+ {[%emt 0:00:11]} 33. g3 {[%emt 0:00:00]} Bd7 {[%emt 0:00:21]} 34. Qe3 {[%emt 0:00:00]} Rb2 {[%emt 0:01:20]} 35. Kg2 {[%emt 0:00:00]} Qd6 {[%emt 0:00:14]} 36. Qxh6 {[%emt 0:01:23]} Qd4 {[%emt 0:00:09]} 37. Qg5+ {[%emt 0:00:31]} Kd6 {[%emt 0:00:02]} 0-1

[Event "41st OBSenEM 2025"]
[Site "Berlin"]
[Date "2025.02.07"]
[Round "4.3"]
[White "Schubert, Hans Joachim"]
[Black "Meister, Jakob"]
[Result "1/2-1/2"]
[Annotator "TA"]
[ECO "B32"]
[WhiteElo "2064"]
[BlackElo "2418"]
[PlyCount "163"]
[EventDate "2025.02.04"]
[EventType "swiss"]
[EventCountry "GER"]
[SourceTitle "playchess.com"]
[Source "ChessBase"]
[SourceQuality "1"]
[TimeControl "40/5400+30:1800+30"]

{[%evp 10,162,1,-10,18,6,7,18,33,19,27,33,39,15,14,21,31,0,0,0,10,0,20,-22,-24,-21,-16,-20,12,0,27,27,27,27,29,27,27,27,27,0,27,0,27,27,27,27,27,27,27,0,27,27,47,27,30,0,52,58,63,63,62,62,80,0,0,0,0,0,0,0,0,0,0,0,0,-74,-64,-89,-73,-67,11,-6,0,-3,8,10,8,8,8,8,12,0,0,0,0,0,0,0,0,0,0,0,0,0,0,0,0,0,0,0,0,0,0,0,0,0,0,0,0,0,0,0,8,0,0,0,0,0,0,0,0,0,8,8,8,10,15,0,0,0,17,0,0,0,0,0,0,0,0,0,0,0,0,0,0]} 1. e4 {[%emt 0:00:07]} c5 {[%emt 0:01:56]} 2. Nf3 {[%emt 0:00:15]} Nc6 {[%emt 0:00:23]} 3. d4 {[%emt 0:00:06]} cxd4 {[%emt 0:00:09]} 4. Nxd4 {[%emt 0:00:07]} e5 {[%emt 0:00:32]} 5. Nb3 {[%emt 0:00:29]} Nf6 {[%emt 0:00:11]} 6. Bg5 {[%emt 0:01:26]} h6 {[%emt 0:00:21] B32: Sicilian: Löwenthal and Kalashnikov Variations.} 7. Bxf6 {[%emt 0:01:06]} Qxf6 {[%emt 0:00:08]} 8. a3 {[%emt 0:03:01]} Qg6 {[%emt 0:05:28]} 9. Nc3 {[%emt 0:02:12]} Be7 {[%emt 0:04:12]} 10. Qd3 {[%emt 0:01:02]} O-O {[%emt 0:00:58]} 11. Qg3 $146 {[%emt 0:00:16]} (11. O-O-O Rd8 12. Nd5 Bf8 13. f3 Ne7 14. Ne3 d6 15. g4 Nc6 16. h4 a6 17. Be2 {0-1 Merz,N (1644)-Reznik,L (1863) Mecklenburg VP LL2 West 0708 2007 (6.5)}) 11... Qxg3 {[%emt 0:01:05]} 12. hxg3 {[%emt 0:00:19]} d6 {[%emt 0:00:19]} 13. Bc4 {[%emt 0:03:38]} Be6 {[%emt 0:03:20]} 14. Bd5 {[%emt 0:00:47]} Rac8 {[%emt 0:03:22]} 15. O-O-O {[%emt 0:03:24]} a6 {[%emt 0:00:52]} 16. Rdf1 {[%emt 0:00:40]} b5 {[%emt 0:01:51]} 17. f4 {[%emt 0:06:23]} (17. Na2 {simplifies} Bxd5 18. exd5 Nb8 19. Kb1) 17... Nd4 {[%emt 0:08:24]} 18. Kb1 {[%emt 0:05:06]} Nxb3 {[%emt 0:01:09]} 19. cxb3 {[%emt 0:00:09]} Bf6 {[%emt 0:04:07]} 20. f5 {[%emt 0:03:36]} Bd7 {[%emt 0:02:02] Black is weak on the light squares} 21. b4 {[%emt 0:05:19]} Rb8 {[%emt 0:00:41]} 22. Rd1 {[%emt 0:00:36]} Rfd8 {[%emt 0:02:51]} 23. Bb3 {[%emt 0:01:37]} Bc6 {[%emt 0:01:47]} 24. Bd5 {[%emt 0:01:03]} Be8 {[%emt 0:00:45]} 25. Bb3 {[%emt 0:00:46]} Bg5 {[%emt 0:01:27]} 26. Rd3 {[%emt 0:03:16]} Bc6 {[%emt 0:01:47]} 27. Rhd1 {[%emt 0:03:01]} Be7 {[%emt 0:00:17]} 28. Bd5 {[%emt 0:00:01]} Be8 {[%emt 0:00:27]} 29. Bb3 {[%emt 0:00:38]} Kf8 {[%emt 0:00:34]} 30. g4 {[%emt 0:02:48]} Rbc8 {[%emt 0:00:53]} 31. Nd5 {[%emt 0:05:04] Strong Square White (d5)} Bc6 {[%emt 0:02:16]} 32. Nc3 {[%emt 0:00:30]} Bb7 {[%emt 0:02:39]} (32... Be8 $11) 33. Bd5 $14 {[%emt 0:00:24]} Bxd5 {[%emt 0:00:33]} 34. Nxd5 {[%emt 0:00:04]} Rc4 {[%emt 0:00:03]} 35. Re1 {[%emt 0:04:16] White is more active.} Bg5 {[%emt 0:02:33] [#]} 36. Re2 {[%emt 0:04:58]} (36. Rc3 $1 $16) 36... Rc1+ $11 {[%emt 0:02:29]} 37. Ka2 {[%emt 0:00:32]} Rdc8 {[%emt 0:00:18]} 38. Kb3 {[%emt 0:01:25]} Ke8 {[%emt 0:03:14]} 39. Rf3 {[%emt 0:03:46]} R8c6 {[%emt 0:03:00]} 40. Rc3 {[%emt 0:05:25]} R6xc3+ {[%emt 0:02:53]} 41. bxc3 {[%emt 0:30:30][%mdl 4096] Endgame KRB-KRN} Kd7 {[%emt 0:30:03]} 42. Rc2 {[%emt 0:05:56]} (42. a4 $11) 42... Rb1+ $17 {[%emt 0:00:32]} (42... Re1 43. c4 Rxe4 44. cxb5 axb5 45. Nc7 $15 (45. Rc7+ Kd8 $17)) 43. Ka2 $1 {[%emt 0:00:03]} Re1 {[%emt 0:00:13]} 44. c4 {[%emt 0:00:23]} Bd8 {[%emt 0:06:32] [#]} ({Black should try} 44... Rxe4 $15 45. cxb5 axb5) 45. a4 $1 {[%emt 0:09:02] The position is equal.} bxa4 {[%emt 0:02:02]} (45... Rxe4 46. cxb5 axb5 (46... Rxg4 $2 47. bxa6 Rd4 48. a7 $18) 47. a5 (47. axb5 $2 Rd4 $19) 47... Bxa5 (47... Rxg4 $2 48. a6 $18) 48. bxa5 Ra4+ 49. Kb3 Rxa5 50. Rc7+ Ke8 51. Rc8+ Kd7 52. Rg8 $18) 46. b5 $1 {[%emt 0:00:49]} axb5 {[%emt 0:00:20]} (46... Rxe4 $2 {too greedy.} 47. bxa6 Kc8 48. Rb2 $18) 47. cxb5 {[%emt 0:00:18] Black must now prevent b6.} Rxe4 {[%emt 0:03:34][%cal Oe4d4] and ...Rd4! would now be decisive} 48. b6 {[%emt 0:01:31]} Bxb6 {[%emt 0:00:25]} 49. Nxb6+ $11 {[%emt 0:00:22] KRN-KR} Ke7 {[%emt 0:00:31][%cal Oe7f6]} 50. Nd5+ {[%emt 0:05:05]} Kd8 {[%emt 0:01:39]} 51. Rc6 {[%emt 0:05:51]} Rxg4 {[%emt 0:01:00]} 52. Rxd6+ {[%emt 0:00:28]} Ke8 {[%emt 0:00:23]} 53. Ne3 {[%emt 0:01:33]} Re4 {[%emt 0:02:13]} 54. Rd3 {[%emt 0:01:08]} h5 {[%emt 0:00:36]} 55. Kb2 {[%emt 0:00:30]} Ke7 {[%emt 0:04:44]} 56. Kc2 {[%emt 0:00:42]} Kf6 {[%emt 0:00:37]} 57. g3 {[%emt 0:02:58]} Kg5 {[%emt 0:02:48]} 58. Rc3 {[%emt 0:00:06]} g6 {[%emt 0:03:37]} 59. fxg6 {[%emt 0:00:41]} Kxg6 {[%emt 0:01:21]} 60. Kd3 {[%emt 0:02:18]} Rb4 {[%emt 0:01:46]} 61. Ke2 {[%emt 0:00:00]} h4 {[%emt 0:00:00]} 62. gxh4 {[%emt 0:00:00]} Rxh4 {[%emt 0:00:00]} 63. Rc6+ {[%emt 0:00:00]} Kg5 {[%emt 0:00:00]} 64. Rc8 {[%emt 0:00:00]} Rd4 {[%emt 0:00:00]} 65. Rg8+ {[%emt 0:00:00]} Kf6 {[%emt 0:00:00]} 66. Ng4+ {[%emt 0:00:00]} Ke6 {[%emt 0:00:00]} 67. Re8+ {[%emt 0:00:00]} Kd6 {[%emt 0:00:00]} 68. Ne3 {[%emt 0:00:00]} Rf4 {[%emt 0:00:00] Repels Nf5+} 69. Rd8+ {[%emt 0:00:00]} Kc6 {[%emt 0:00:00]} 70. Rc8+ {[%emt 0:00:00]} Kb7 {[%emt 0:00:00]} 71. Rc5 {[%emt 0:00:00]} f6 {[%emt 0:00:00]} 72. Nd5 {[%emt 0:00:00]} Re4+ {[%emt 0:00:00]} 73. Kf3 {[%emt 0:00:00]} f5 {[%emt 0:00:00]} 74. Nc3 {[%emt 0:00:00]} Rd4 {[%emt 0:00:00]} 75. Rxe5 {[%emt 0:00:00]} Rd3+ {[%emt 0:00:00]} 76. Re3 {[%emt 0:00:00]} Rxe3+ {[%emt 0:00:00]} 77. Kxe3 {[%emt 0:00:00] KN-KPP} a3 {[%emt 0:00:00]} 78. Kf4 {[%emt 0:00:00]} Kc6 {[%emt 0:00:00]} 79. Kxf5 {[%emt 0:00:00]} Kc5 {[%emt 0:00:00]} 80. Ke4 {[%emt 0:00:00]} Kc4 {[%emt 0:00:00]} 81. Na2 $1 {[%emt 0:00:00]} Kb3 {[%emt 0:00:00]} 82. Kd3 {[%emt 0:00:00] Weighted Error Value: White=0.09 (flawless) /Black=0.09 (flawless)   Mistake:       	White=2     	Black=2      Inaccurate:     	White=6     	Black=5      OK:         	White=31    	Black=35     Best:        	White=2     	Black=2      Strong:       	White=3     	---} 1/2-1/2

[Event "41st OBSenEM 2025"]
[Site "Berlin"]
[Date "2025.02.07"]
[Round "4.4"]
[White "Jurkatis, Hagen"]
[Black "Niehaus, Frank"]
[Result "1/2-1/2"]
[Annotator "NA RC"]
[ECO "A48"]
[WhiteElo "1952"]
[BlackElo "2109"]
[PlyCount "33"]
[EventDate "2025.02.04"]
[EventType "swiss"]
[EventCountry "GER"]
[SourceTitle "playchess.com"]
[Source "ChessBase"]
[SourceQuality "1"]
[TimeControl "40/5400+30:1800+30"]

1. Nf3 {[%emt 0:00:04]} Nf6 {[%emt 0:00:22]} 2. d4 {[%emt 0:00:11]} g6 {[%emt 0:00:22]} 3. Bg5 {[%emt 0:00:13]} Bg7 {[%emt 0:00:07]} 4. Nbd2 {[%emt 0:00:14]} O-O {[%emt 0:00:10]} 5. c3 {[%emt 0:00:10]} d6 {[%emt 0:00:38]} 6. e4 {[%emt 0:00:25]} c5 {[%emt 0:01:32]} 7. dxc5 {[%emt 0:04:43]} dxc5 {[%emt 0:00:05]} 8. Be2 {[%emt 0:01:39]} Qc7 {[%emt 0:01:37]} 9. O-O {[%emt 0:09:23]} Nc6 {[%emt 1:30:07]} 10. Re1 {[%emt 0:03:49]} Rd8 {[%emt 0:00:00]} 11. Qc2 {[%emt 0:02:51]} b6 {[%emt 0:00:00]} 12. Bf1 {[%emt 0:03:13]} h6 {[%emt 0:00:00]} 13. Bh4 {[%emt 0:00:10]} Nh5 {[%emt 0:00:00]} 14. a4 {[%emt 0:04:52]} Bg4 {[%emt 0:00:00]} 15. Bc4 {[%emt 0:08:17]} Na5 {[%emt 0:00:00]} 16. Bf1 {[%emt 0:02:02]} Nc6 {[%emt 0:00:00]} 17. Bc4 {[%emt 0:00:22]} 1/2-1/2

[Event "41st OBSenEM 2025"]
[Site "Berlin"]
[Date "2025.02.08"]
[Round "5.1"]
[White "Postler, Reinhard"]
[Black "Heinig, Wolfram"]
[Result "1/2-1/2"]
[Annotator "TA"]
[WhiteElo "2189"]
[BlackElo "2196"]
[PlyCount "17"]
[EventDate "2025.02.04"]
[EventType "swiss"]
[EventCountry "GER"]
[SourceTitle "playchess.com"]
[Source "ChessBase"]
[SourceQuality "1"]
[TimeControl "40/5400+30:1800+30"]

{[%evp 9,17,21,27,25,42,18,25,29,28,22]} 1. e4 {[%emt 0:00:08]} c6 {[%emt 0:00:06]} 2. d4 {[%emt 0:00:12]} d5 {[%emt 0:00:07]} 3. exd5 {[%emt 0:00:23]} cxd5 {[%emt 0:00:08]} 4. Bd3 {[%emt 0:00:10]} Nf6 {[%emt 0:00:24]} 5. c3 {[%emt 0:00:36]} Qc7 {[%emt 0:00:38]} 6. Ne2 {[%emt 0:01:06] B13: Caro-Kann: Exchange Variation and Panov-Botvinnik Attack.} Bg4 {[%emt 0:00:21]} 7. Qc2 {[%emt 0:00:34]} Bh5 $146 {[%emt 0:01:39]} (7... e6 8. Bf4 Bd6 9. Bxd6 Qxd6 10. O-O Nc6 11. Na3 a6 12. Qd2 Bh5 13. Nc2 Bg6 {1-0 Shubin,K (2416)-Sargsyan,T (2321) World ol U16 2019 (5.9)}) 8. Bf4 {[%emt 0:01:05]} Qd7 {[%emt 0:02:31]} 9. Ng3 {[%emt 0:01:09] Black did not feel at home in the position after the opening.   Weighted Error Value: White=0.09 (flawless) /Black=0.07 (flawless)   OK:         	White=1     	Black=1} 1/2-1/2

[Event "41st OBSenEM 2025"]
[Site "Berlin"]
[Date "2025.02.08"]
[Round "5.2"]
[White "Ahlberg, Matthias"]
[Black "Knops, Peter"]
[Result "1-0"]
[Annotator "NA RC"]
[ECO "C01"]
[WhiteElo "2067"]
[BlackElo "1987"]
[PlyCount "67"]
[EventDate "2025.02.04"]
[EventType "swiss"]
[EventCountry "GER"]
[SourceTitle "playchess.com"]
[Source "ChessBase"]
[SourceQuality "1"]
[TimeControl "40/5400+30:1800+30"]

1. e4 {[%emt 0:00:02]} e6 {[%emt 0:00:05]} 2. d4 {[%emt 0:00:08]} d5 {[%emt 0:00:07]} 3. Bd3 {[%emt 0:00:06]} dxe4 {[%emt 0:00:21]} 4. Bxe4 {[%emt 0:00:08]} Nf6 {[%emt 0:00:08]} 5. Bf3 {[%emt 0:00:12]} c5 {[%emt 0:00:28]} 6. Ne2 {[%emt 0:01:29]} Nc6 {[%emt 0:02:55]} 7. c3 {[%emt 0:01:18]} cxd4 {[%emt 0:04:21]} 8. Bxc6+ {[%emt 0:06:27]} bxc6 {[%emt 0:00:06]} 9. Nxd4 {[%emt 0:03:15]} Qc7 {[%emt 0:13:20]} 10. O-O {[%emt 0:20:27]} Bd6 {[%emt 0:06:34]} 11. h3 {[%emt 0:03:40]} O-O {[%emt 0:14:46]} 12. Qc2 {[%emt 0:09:55]} Bb7 {[%emt 0:07:32]} 13. Bg5 {[%emt 0:03:55]} Kh8 {[%emt 0:07:44]} 14. c4 {[%emt 0:07:34]} c5 {[%emt 0:01:13]} 15. Nb5 {[%emt 0:00:41]} Qc6 {[%emt 0:00:15]} 16. f3 {[%emt 0:00:48]} Be7 {[%emt 0:01:47]} 17. Nd2 {[%emt 0:01:37]} a6 {[%emt 0:01:49]} 18. Nc3 {[%emt 0:00:44]} Qc7 {[%emt 0:00:23]} 19. Nde4 {[%emt 0:08:34]} Bxe4 {[%emt 0:01:19]} 20. fxe4 {[%emt 0:02:34]} Qe5 {[%emt 0:13:43]} 21. Be3 {[%emt 0:11:57]} Bd6 {[%emt 0:04:23]} 22. Rf3 {[%emt 0:00:42]} Be7 {[%emt 0:04:36]} 23. Rd1 {[%emt 0:01:40]} Qc7 {[%emt 0:02:23]} 24. Bf4 {[%emt 0:01:20]} Qc6 {[%emt 0:00:54]} 25. Bg5 {[%emt 0:01:46]} Ng8 {[%emt 0:01:16]} 26. Bf4 {[%emt 0:01:43]} Nf6 {[%emt 0:01:35]} 27. Rdf1 {[%emt 0:00:14]} h6 {[%emt 0:01:04]} 28. e5 {[%emt 0:01:27]} Nh7 {[%emt 0:00:38]} 29. Bxh6 {[%emt 0:02:08]} f5 {[%emt 0:03:20]} 30. exf6 {[%emt 0:01:56]} Bxf6 {[%emt 0:00:34]} 31. Be3 {[%emt 0:01:13]} Bd4 {[%emt 0:00:57]} 32. Rxf8+ {[%emt 0:02:28]} Rxf8 {[%emt 0:00:08]} 33. Rxf8+ {[%emt 0:00:34]} Nxf8 {[%emt 0:00:05]} 34. Qf2 {[%emt 0:00:46]} 1-0

[Event "41st OBSenEM 2025"]
[Site "Berlin"]
[Date "2025.02.08"]
[Round "5.3"]
[White "Zaeske, Winfried"]
[Black "Federau, Juergen"]
[Result "0-1"]
[Annotator "NA RC"]
[ECO "B90"]
[WhiteElo "1978"]
[BlackElo "2124"]
[PlyCount "52"]
[EventDate "2025.02.04"]
[EventType "swiss"]
[EventCountry "GER"]
[SourceTitle "playchess.com"]
[Source "ChessBase"]
[SourceQuality "1"]
[TimeControl "40/5400+30:1800+30"]

1. e4 {[%emt 0:01:08]} c5 {[%emt 0:03:19]} 2. Nf3 {[%emt 0:01:14]} d6 {[%emt 0:00:17]} 3. d4 {[%emt 0:00:15]} cxd4 {[%emt 0:00:06]} 4. Nxd4 {[%emt 0:00:06]} Nf6 {[%emt 0:00:07]} 5. Nc3 {[%emt 0:00:05]} a6 {[%emt 0:00:13]} 6. Bc4 {[%emt 0:00:16]} b5 {[%emt 0:04:10]} 7. Bb3 {[%emt 0:00:22]} Bb7 {[%emt 0:00:17]} 8. O-O {[%emt 0:04:22]} Nbd7 {[%emt 0:00:20]} 9. f4 {[%emt 0:02:27]} Nxe4 {[%emt 0:05:59]} 10. Nxe4 {[%emt 0:05:53]} Bxe4 {[%emt 0:00:07]} 11. Re1 {[%emt 0:04:35]} d5 {[%emt 0:05:41]} 12. Kh1 {[%emt 0:03:15]} Nc5 {[%emt 0:26:50]} 13. f5 {[%emt 0:06:05]} Qd7 {[%emt 0:05:20]} 14. Qh5 {[%emt 0:08:45]} Qd6 {[%emt 0:33:44]} 15. Be3 {[%emt 0:11:22]} g6 {[%emt 0:02:48]} 16. Qh3 {[%emt 0:07:41]} Bg7 {[%emt 0:00:53]} 17. Rad1 {[%emt 0:02:28]} O-O {[%emt 0:00:41]} 18. Rf1 {[%emt 0:03:31]} Rac8 {[%emt 0:00:30]} 19. Qg4 {[%emt 0:10:09]} e5 {[%emt 0:01:58]} 20. fxe6 {[%emt 0:02:46]} fxe6 {[%emt 0:00:13]} 21. Rxf8+ {[%emt 0:02:30]} Rxf8 {[%emt 0:00:40]} 22. c3 {[%emt 0:05:37]} Qe5 {[%emt 0:03:10]} 23. Nc6 {[%emt 0:00:45]} Bxg2+ {[%emt 0:00:21]} 24. Qxg2 {[%emt 0:04:59]} Qxe3 {[%emt 0:00:06]} 25. Qg4 {[%emt 0:02:33]} Nd3 {[%emt 0:01:33]} 26. Ne7+ {[%emt 0:03:12]} Kh8 {[%emt 0:01:04]} 0-1

[Event "41st OBSenEM 2025"]
[Site "Berlin"]
[Date "2025.02.08"]
[Round "5.4"]
[White "Meister, Jakob"]
[Black "Baranowsky, Peter"]
[Result "1-0"]
[Annotator "TA"]
[ECO "D31"]
[WhiteElo "2418"]
[BlackElo "1912"]
[PlyCount "36"]
[EventDate "2025.02.04"]
[EventType "swiss"]
[EventCountry "GER"]
[SourceTitle "playchess.com"]
[Source "ChessBase"]
[SourceQuality "1"]
[TimeControl "40/5400+30:1800+30"]

{[%evp 9,36,36,46,37,57,68,56,55,89,82,79,83,83,78,120,147,157,103,94,107,148,109,268,235,232,239,29995,29996,29999]} 1. d4 {[%emt 0:00:04]} d5 {[%emt 0:00:12]} 2. c4 {[%emt 0:00:19]} e6 {[%emt 0:00:35]} 3. Nc3 {[%emt 0:00:41]} c6 {[%emt 0:01:00]} 4. Nf3 {[%emt 0:00:15]} Nd7 {[%emt 0:00:09]} 5. e4 {[%emt 0:00:14]} dxe4 {[%emt 0:03:13]} 6. Nxe4 {[%emt 0:00:30] D31: Queen's Gambit Declined: Semi-Slav without ...Nf6 (+ Marshall Gambit and Noteboom) and Exchange Variation lines without ...Nf6.} Bb4+ {[%emt 0:01:06]} 7. Bd2 {[%emt 0:01:07]} Be7 {[%emt 0:04:23]} 8. Bd3 {[%emt 0:02:09] White is slightly better.} c5 $146 {[%emt 0:07:50]} (8... Ngf6 9. O-O O-O 10. Qe2 c5 11. dxc5 Nxc5 12. Nxc5 Bxc5 13. Bc3 Qe7 14. Rad1 Rd8 {½-½ Stern,R (2538)-Abel,D (2441) Wch Rapid Berlin 2015 (4)}) 9. Bc3 {[%emt 0:04:06]} cxd4 {[%emt 0:08:45]} 10. Nxd4 {[%emt 0:03:15]} Ngf6 {[%emt 0:02:31]} 11. Qe2 {[%emt 0:00:42] White has more active pieces. The black rooks are passive.} Nc5 {[%emt 0:12:32]} 12. Nxc5 {[%emt 0:01:19]} Bxc5 {[%emt 0:00:31] [#]} 13. Nb3 {[%emt 0:00:14]} (13. O-O-O $142 $1) 13... Be7 {[%emt 0:05:30]} 14. O-O-O {[%emt 0:00:53]} Bd7 {[%emt 0:02:43]} 15. g4 {[%emt 0:00:42][%cal Bg2g4,Bg4g5][%mdl 32] g5 would now be deadly.} O-O $2 {[%emt 0:17:26] This costs Black the game.} (15... h6 $16) 16. g5 {[%emt 0:00:22]} Ne8 {[%emt 0:00:15]} 17. h4 {[%emt 0:00:19]} f6 $2 {[%emt 0:05:27] [#]} (17... Qc7 $18 18. Kb1 Rd8) 18. Bxh7+ $1 {[%emt 0:02:57][%mdl 512]} Kf7 {[%emt 0:04:22] Weighted Error Value: White=0.08 (flawless) /Black=0.78  Mistake:       	White=1     	Black=2      Inaccurate:     	---       	Black=3      OK:         	White=5     	Black=3      Brilliant:      	White=1     	---} (18... Kxh7 19. Qh5+) 1-0

[Event "41st OBSenEM 2025"]
[Site "Berlin"]
[Date "2025.02.10"]
[Round "6.1"]
[White "Federau, Juergen"]
[Black "Postler, Reinhard"]
[Result "1-0"]
[Annotator "TA"]
[ECO "D30"]
[WhiteElo "2124"]
[BlackElo "2189"]
[PlyCount "80"]
[EventDate "2025.02.04"]
[EventType "swiss"]
[EventCountry "GER"]
[SourceTitle "playchess.com"]
[Source "ChessBase"]
[SourceQuality "1"]
[TimeControl "40/5400+30:1800+30"]

{[%evp 15,80,34,41,12,29,24,29,28,32,22,22,0,54,9,11,8,30,0,0,0,54,7,14,0,0,0,18,-5,18,-26,9,-8,-22,-9,-12,-33,-25,-31,-21,-19,46,54,81,31,136,38,93,51,110,0,29,42,31,33,50,21,17,17,140,147,131,139,129,136,238,238,345]} 1. d4 {[%emt 0:00:03]} d5 {[%emt 0:00:06]} 2. c4 {[%emt 0:00:04]} c6 {[%emt 0:00:04]} 3. e3 {[%emt 0:00:57]} Nf6 {[%emt 0:00:17]} 4. Nf3 {[%emt 0:00:53]} e6 {[%emt 0:00:26]} 5. Bd3 {[%emt 0:00:21]} dxc4 {[%emt 0:01:47]} 6. Bxc4 {[%emt 0:00:06]} Nbd7 {[%emt 0:00:15]} 7. O-O {[%emt 0:00:59]} b5 {[%emt 0:00:36]} 8. Bd3 {[%emt 0:01:47]} Bb7 {[%emt 0:00:12]} 9. Qe2 {[%emt 0:23:15] D30: Queen's Gambit Declined: Systems without Nc3.} a6 {[%emt 0:05:13]} 10. a4 {[%emt 0:00:28]} Be7 {[%emt 0:16:54]} 11. Nbd2 {[%emt 0:15:11] White has an edge.} Nd5 {[%emt 0:10:55]} 12. Nb3 $146 {[%emt 0:00:56]} (12. Rd1 Nb4 13. Bb1 O-O 14. e4 c5 15. e5 cxd4 16. Nxd4 Nxe5 17. Qxe5 Bf6 18. Qe2 Qxd4 {½-½ Laylo,D (2433)-Garma,C (2325) PHI-ch Manila 2017 (10)}) 12... Nb4 {[%emt 0:02:50]} 13. Bb1 {[%emt 0:04:09]} a5 {[%emt 0:08:00]} (13... bxa4 $11 14. Rxa4 a5) 14. Rd1 {[%emt 0:06:54]} Qb6 {[%emt 0:09:07]} 15. axb5 {[%emt 0:10:32]} cxb5 {[%emt 0:00:14]} 16. e4 {[%emt 0:01:30]} a4 {[%emt 0:01:43]} 17. Nbd2 {[%emt 0:00:29]} Rc8 {[%emt 0:00:48]} (17... O-O $11) 18. Nf1 {[%emt 0:00:43]} (18. b3 $14) 18... O-O $11 {[%emt 0:01:58]} 19. Ng3 {[%emt 0:03:16]} Rfd8 {[%emt 0:02:23]} 20. h4 {[%emt 0:03:09][%cal Bh2h4,Bh4h5,Bh5h6][%mdl 32]} Bf8 {[%emt 0:05:10]} 21. h5 {[%emt 0:05:03]} Qc6 {[%emt 0:03:38]} 22. Bf4 {[%emt 0:06:48][%cal Oh5h6]} Qc4 {[%emt 0:06:18]} 23. Qe3 {[%emt 0:04:56]} Nc2 {[%emt 0:07:22]} 24. Bxc2 {[%emt 0:00:12]} Qxc2 {[%emt 0:00:02]} 25. Rd2 {[%emt 0:00:50]} Qc4 {[%emt 0:02:52]} 26. h6 {[%emt 0:00:29]} g6 {[%emt 0:00:51]} 27. Ne5 {[%emt 0:05:09]} Nxe5 {[%emt 0:01:43]} (27... Qb4 $11) 28. Bxe5 $14 {[%emt 0:00:06]} Be7 {[%emt 0:03:34] Wards off Qg5} 29. Qf4 {[%emt 0:01:18]} (29. Nh5 $1 $16 {[%cal Oe5f6] Bf6! is the strong threat.} gxh5 30. Qg3+ Kf8 31. Qg7+ Ke8 32. Qxh7) 29... g5 {[%emt 0:02:31]} ({Black should try} 29... f6 $14 30. Bxf6 Rf8) 30. Qf3 {[%emt 0:02:37]} (30. Qg4 $1 $16) 30... f5 {[%emt 0:02:17]} 31. Qd1 {[%emt 0:02:06]} Rf8 {[%emt 0:01:17]} (31... Qc6 $14) 32. f3 {[%emt 0:00:26]} ({White has to play} 32. b3 $1 $16 {[%cal Rb3c4]} Qxb3 33. Qxb3 axb3 34. Ra7) 32... f4 {[%emt 0:02:54]} 33. Ne2 {[%emt 0:00:12]} Bb4 {[%emt 0:01:21]} 34. Rc1 {[%emt 0:00:35]} Qb3 {[%emt 0:00:02]} (34... Bxd2 35. Rxc4 Be3+ 36. Kh2 Rxc4 37. b3 axb3 38. Qxb3) 35. Rdc2 {[%emt 0:00:17]} (35. Qxb3 {simplifies} axb3 36. Rd3 Be7 37. Bg7) 35... Rc4 {[%emt 0:00:52]} 36. Rxc4 {[%emt 0:00:29]} bxc4 {[%emt 0:00:14] [#]} (36... Qxd1+ $11 37. Rxd1 bxc4) 37. Qxb3 $1 $16 {[%emt 0:00:57]} cxb3 {[%emt 0:00:10] [#]} 38. Rc7 {[%emt 0:00:35]} ({Don't play} 38. Rc4 $6 a3 39. Rxb4 a2 40. Rxb7 (40. Ra4 $2 Ra8 $19) 40... Rf7 (40... a1=B 41. Rg7+ Kh8 42. Rxg5+) (40... a1=Q+ 41. Kh2 $11) 41. Rb8+ (41. Rxb3 a1=Q+ 42. Kh2 Qe1 $19) 41... Rf8 $11) 38... Rf7 {[%emt 0:00:08] Hoping for ...Rxc7.} 39. Rc4 {[%emt 0:00:10] White is more active.} Ba6 {[%emt 0:00:55]} (39... Bd2 $16 {might work better.}) 40. Rxb4 $18 {[%emt 0:00:08]} Rb7 {[%emt 0:00:03] Weighted Error Value: White=0.22 (precise) /Black=0.33  Mistake:       	White=4     	Black=9      Inaccurate:     	White=5     	Black=3      OK:         	White=10    	Black=8      Best:        	White=2     	Black=3      Strong:       	White=1     	---} (40... Bxe2 $142 41. Rxa4 (41. Kf2 a3 $16) 41... g4) 1-0